bitfinex-derivatives/quotes_SOLF0:USTF0_20250516
["timestamp","ask_amount","ask_price","bid_price","bid_amount"]
[1747428197568,131.2591,169.47,169.38,1.9963]
[1747428198074,131.2591,169.47,169.43,5.8999]
[1747428198274,5.8993,169.46,169.43,5.8999]
[1747428199379,5.8997,169.45,169.42,5.9005]
[1747428200276,5.8997,169.45,169.43,5.9001]
[1747428201579,9.70037497,169.46,169.36,0.20792]
[1747428202379,5.9002,169.43,169.4,5.9011]
[1747428202580,125.32,169.42,169.4,5.9011]
[1747428202881,5.9012,169.41,169.38,5.9019]
[1747428203375,125.32,169.42,169.36,0.20792]
[1747428203579,5.9013,169.4,169.37,5.9021]
[1747428204585,5.9017,169.39,169.37,5.9021]
[1747428204780,62.58,169.38,169.37,5.9021]
[1747428207183,62.58,169.38,169.36,6.11052]
[1747428207377,125.16,169.38,169.36,0.20792]
[1747428207882,125.16,169.38,169.36,6.11042]
[1747428208079,125.16,169.38,169.36,0.20792]
[1747428209786,131.0622,169.38,169.36,0.20792]
[1747428209978,125.16,169.38,169.36,0.20792]
[1747428210486,5.9023,169.37,169.36,0.20792]
[1747428211575,9.70037497,169.37,169.27,9.45325792]
[1747428211989,9.70037497,169.37,169.32,5.9038]
[1747428212481,5.9029,169.36,169.27,9.45325792]
[1747428212886,9.70037497,169.37,169.27,9.45325792]
[1747428213091,15.60277497,169.37,169.27,9.45325792]
[1747428213290,9.70037497,169.37,169.27,9.45325792]
[1747428213584,9.70037497,169.37,169.33,5.9037]
[1747428213787,5.903,169.36,169.33,5.9037]
[1747428214190,9.70037497,169.37,169.32,5.9039]
[1747428214489,5.9032,169.35,169.32,5.9039]
[1747428214682,125.14,169.34,169.32,5.9039]
[1747428214876,125.14,169.34,169.33,5.9037]
[1747428215889,125.14,169.34,169.32,5.904]
[1747428217490,131.0434,169.34,169.32,5.904]
[1747428217694,125.14,169.34,169.32,5.904]
[1747428218791,125.14,169.34,169.33,5.9037]
[1747428219092,125.14,169.34,169.27,3.9541]
[1747428219293,125.14,169.34,169.32,5.9039]
[1747428219695,131.0434,169.34,169.32,5.9039]
[1747428219894,125.14,169.34,169.32,5.9039]
[1747428222587,125.14,169.34,169.33,5.9037]
[1747428226097,125.14,169.34,169.32,5.904]
[1747428226393,125.14,169.34,169.27,3.9541]
[1747428227094,5.9038,169.33,169.31,5.9042]
[1747428227994,5.9038,169.33,169.3,5.9047]
[1747428228693,5.9038,169.33,169.31,5.9044]
[1747428228997,5.9038,169.33,169.27,3.9541]
[1747428229299,5.9038,169.33,169.3,5.9044]
[1747428229498,5.9038,169.33,169.27,3.9541]
[1747428230195,5.9038,169.33,169.3,5.9046]
[1747428230598,62.48,169.32,169.27,3.9541]
[1747428231299,1.9058,169.39,169.36,5.9027]
[1747428231498,125.1,169.38,169.27,3.9541]
[1747428231998,131.0022,169.38,169.35,5.9027]
[1747428232494,68.5222,169.38,169.35,5.9027]
[1747428232694,62.46,169.37,169.35,5.9027]
[1747428233698,62.46,169.37,169.36,5.9027]
[1747428235402,62.46,169.38,169.37,5.9023]
[1747428235596,124.92,169.38,169.37,5.9023]
[1747428236503,124.92,169.38,169.36,5.9025]
[1747428237403,124.92,169.38,169.37,5.9023]
[1747428237600,124.9,169.38,169.37,5.9023]
[1747428242006,124.9,169.38,169.36,5.9026]
[1747428242309,124.9,169.38,169.29,2.0164]
[1747428242603,130.8022,169.38,169.35,5.9029]
[1747428243007,130.8022,169.38,169.36,5.9026]
[1747428243205,124.9,169.38,169.36,5.9026]
[1747428243808,130.802,169.38,169.36,5.9026]
[1747428244710,124.9,169.38,169.36,5.9026]
[1747428245709,130.8021,169.38,169.36,5.9026]
[1747428247005,134.60037497,169.38,169.29,2.0164]
[1747428247310,134.60037497,169.38,169.27,9.45325792]
[1747428247611,9.70037497,169.35,169.27,9.45325792]
[1747428247808,124.82,169.34,169.27,9.45325792]
[1747428248009,5.9042,169.32,169.29,5.9049]
[1747428249217,5.9046,169.31,169.27,3.9541]
[1747428249412,62.38,169.3,169.27,3.9541]
[1747428250112,5.9043,169.32,169.27,3.9541]
[1747428250113,5.7754,169.37,169.27,3.9541]
[1747428250313,5.7754,169.37,169.31,5.9042]
[1747428250314,5.9032,169.35,169.31,5.9042]
[1747428250615,5.9032,169.35,169.27,3.9541]
[1747428251518,5.9032,169.35,169.31,5.9042]
[1747428251919,5.9032,169.35,169.27,3.9541]
[1747428252626,5.9032,169.35,169.31,5.9042]
[1747428253025,5.9032,169.35,169.27,3.9541]
[1747428253324,5.9032,169.35,169.31,5.9042]
[1747428253523,124.82,169.34,169.31,5.9042]
[1747428253721,5.9032,169.35,169.31,5.9042]
[1747428253925,124.82,169.34,169.31,5.9042]
[1747428255428,124.82,169.34,169.32,5.904]
[1747428255624,124.82,169.34,169.27,3.9541]
[1747428256124,124.82,169.34,169.32,5.904]
[1747428256728,124.82,169.34,169.27,3.9541]
[1747428256729,124.82,169.34,169.33,5.9037]
[1747428256927,15.21485957,169.36,169.27,3.9541]
[1747428256928,62.34,169.35,169.27,3.9541]
[1747428257130,62.34,169.35,169.28,1.9733]
[1747428257626,5.5144846,169.36,169.35,5.903]
[1747428257827,67.8544846,169.36,169.35,5.903]
[1747428258423,5.5144846,169.36,169.35,5.903]
[1747428258629,62.34,169.37,169.36,5.9027]
[1747428260834,62.46,169.39,169.38,5.902]
[1747428261132,124.78,169.39,169.3,5.49915792]
[1747428262035,124.78,169.39,169.37,5.9022]
[1747428263942,130.6817,169.39,169.36,5.9026]
[1747428264640,130.6817,169.39,169.35,5.9029]
[1747428264843,124.78,169.39,169.3,5.49915792]
[1747428265344,130.6818,169.39,169.36,5.9026]
[1747428266553,124.78,169.39,169.36,5.9026]
[1747428266938,124.78,169.39,169.37,5.9023]
[1747428268136,130.6817,169.39,169.36,5.9026]
[1747428268438,130.6817,169.39,169.29,67.95915792]
[1747428268631,124.78,169.39,169.29,67.95915792]
[1747428269340,130.6818,169.39,169.29,67.95915792]
[1747428269542,124.78,169.39,169.29,67.95915792]
[1747428270344,134.48037497,169.39,169.29,67.95915792]
[1747428271146,134.48037497,169.39,169.29,5.49915792]
[1747428271638,5.9025,169.37,169.34,5.9031]
[1747428271949,134.48037497,169.39,169.34,5.9031]
[1747428272247,5.9025,169.37,169.34,5.9031]
[1747428272949,5.9025,169.37,169.29,5.49915792]
[1747428273753,9.70037497,169.39,169.29,5.49915792]
[1747428273952,124.52,169.38,169.28,1.9733]
[1747428274946,124.52,169.38,169.36,5.9024]
[1747428278953,130.4221,169.38,169.35,5.9029]
[1747428279154,130.4221,169.38,169.29,5.49915792]
[1747428279356,124.52,169.38,169.29,5.49915792]
[1747428280052,62.22,169.37,169.29,5.49915792]
[1747428281254,62.22,169.37,169.3,5.49915792]
[1747428281449,68.1224,169.37,169.3,5.49915792]
[1747428283157,5.9029,169.36,169.3,5.49915792]
[1747428283454,62.22,169.37,169.29,5.49915792]
[1747428283455,62.28,169.35,169.29,5.49915792]
[1747428283661,5.9035,169.34,169.31,5.9042]
[1747428283849,62.2,169.33,169.31,5.9042]
[1747428286156,62.2,169.33,169.32,5.9041]
[1747428286656,62.2,169.33,169.29,5.49915792]
[1747428286958,62.2,169.33,169.27,9.30063411]
[1747428286959,62.2,169.33,169.31,5.9042]
[1747428287557,62.2,169.33,169.32,5.9041]
[1747428291558,62.2,169.33,169.27,1.9817]
[1747428291757,62.2,169.33,169.26,5.49915792]
[1747428292255,62.2,169.33,169.32,5.9041]
[1747428292454,62.2,169.33,169.25,67.77915792]
[1747428292958,62.2,169.33,169.31,5.9042]
[1747428297158,62.2,169.33,169.32,5.9041]
[1747428300457,62.2,169.33,169.31,5.9043]
[1747428300663,62.2,169.33,169.25,67.77915792]
[1747428301262,62.2,169.33,169.32,5.9041]
[1747428301558,1.9149,169.36,169.25,67.77915792]
[1747428301765,62.12,169.35,169.34,5.9034]
[1747428302464,62.14,169.36,169.26,9.70037497]
[1747428302663,62.14,169.36,169.28,5.49915792]
[1747428302664,124.24,169.36,169.28,5.49915792]
[1747428302963,124.24,169.36,169.29,62.14]
[1747428303361,124.24,169.36,169.35,5.903]
[1747428304066,1.9679,169.38,169.37,5.9023]
[1747428304265,64.0679,169.38,169.37,5.9023]
[1747428304567,64.0679,169.38,169.36,5.9025]
[1747428305064,64.0679,169.38,169.29,62.14]
[1747428305265,64.0679,169.38,169.36,5.9025]
[1747428305466,64.0679,169.38,169.29,62.14]
[1747428305657,64.0679,169.38,169.29,67.63915792]
[1747428305860,64.0679,169.38,169.37,5.9023]
[1747428306560,64.0679,169.38,169.36,5.9026]
[1747428306756,64.0679,169.38,169.29,67.63915792]
[1747428307169,69.9702,169.38,169.29,67.63915792]
[1747428307768,69.9702,169.38,169.35,5.903]
[1747428307966,62.14,169.39,169.29,67.63915792]
[1747428308167,62.14,169.39,169.3,11.8093]
[1747428308567,124.22,169.39,169.3,11.8093]
[1747428308871,572.14,169.42,169.31,62.06]
[1747428309065,62.06,169.41,169.32,9.70037497]
[1747428309266,62.06,169.41,169.33,62.14]
[1747428309462,62.06,169.41,169.33,73.9474]
[1747428309670,62.06,169.41,169.31,67.65688197]
[1747428309869,67.8364,169.41,169.31,67.65688197]
[1747428310065,5.9018,169.39,169.35,5.9028]
[1747428310364,62.14,169.38,169.35,5.9028]
[1747428310562,62.06,169.37,169.35,5.9028]
[1747428311470,62.06,169.37,169.34,5.9033]
[1747428313475,62.06,169.37,169.35,5.903]
[1747428316569,62.06,169.37,169.29,5.51688197]
[1747428317478,67.9625,169.37,169.29,5.51688197]
[1747428317780,62.06,169.37,169.29,5.51688197]
[1747428318476,62.06,169.37,169.28,73.42338197]
[1747428319578,62.06,169.37,169.34,5.9032]
[1747428320176,62.06,169.37,169.28,73.42338197]
[1747428320777,62.06,169.37,169.34,5.9031]
[1747428321374,67.9624,169.37,169.29,5.51688197]
[1747428321570,67.9624,169.37,169.33,5.9036]
[1747428321874,67.9624,169.37,169.29,5.51688197]
[1747428322178,67.9624,169.37,169.34,5.9032]
[1747428322379,62.06,169.37,169.34,5.9032]
[1747428322979,68.0421,169.38,169.29,5.51688197]
[1747428323178,61.98,169.37,169.29,5.51688197]
[1747428323674,61.98,169.37,169.34,5.903]
[1747428323879,61.98,169.37,169.3,5.51688197]
[1747428325082,61.98,169.37,169.36,5.9027]
[1747428325275,68.20564012,169.37,169.3,11.74252209]
[1747428325884,68.20564012,169.37,169.3,6.22564012]
[1747428326181,61.98,169.36,169.3,6.22564012]
[1747428326680,61.98,169.36,169.34,5.9033]
[1747428327779,61.98,169.36,169.35,5.903]
[1747428328981,61.98,169.36,169.34,5.9032]
[1747428329176,6.22564012,169.35,169.29,5.51688197]
[1747428329679,6.22564012,169.33,169.29,5.51688197]
[1747428329880,61.96,169.32,169.29,5.51688197]
[1747428330271,6.22564012,169.31,169.29,5.51688197]
[1747428330674,12.13014012,169.31,169.29,5.51688197]
[1747428330970,6.22564012,169.31,169.29,5.51688197]
[1747428331282,67.8643,169.32,169.29,11.42198197]
[1747428331986,67.8643,169.32,169.29,5.9051]
[1747428332174,61.96,169.32,169.25,5.51688197]
[1747428332781,5.905,169.3,169.27,5.9056]
[1747428332982,67.885,169.3,169.27,5.9056]
[1747428333781,67.885,169.3,169.28,5.9054]
[1747428333982,67.885,169.3,169.25,5.51688197]
[1747428333983,61.98,169.3,169.25,5.51688197]
[1747428334583,61.98,169.3,169.22,67.47688197]
[1747428335085,61.94,169.29,169.22,67.47688197]
[1747428336075,61.94,169.29,169.22,5.51688197]
[1747428336284,67.8455,169.29,169.22,5.51688197]
[1747428336485,61.94,169.29,169.25,5.9063]
[1747428336789,61.94,169.29,169.22,5.51688197]
[1747428336990,67.7686,169.29,169.22,5.51688197]
[1747428337176,9.73456636,169.28,169.19,5.51688197]
[1747428337377,9.73456636,169.25,169.19,11.42538197]
[1747428337579,9.73456636,169.22,169.18,8.47506381]
[1747428337881,5.9085,169.2,169.15,7.35584263]
[1747428338080,5.9085,169.2,169.16,5.9094]
[1747428338286,9.73456636,169.19,169.15,7.35584263]
[1747428338585,9.73456636,169.19,169.15,4.29654263]
[1747428338782,123.9,169.18,169.15,4.29654263]
[1747428338986,9.73456636,169.22,169.15,4.29654263]
[1747428339179,9.73456636,169.22,169.19,5.9085]
[1747428339379,510.32,169.23,169.15,4.29654263]
[1747428339580,123.9,169.22,169.15,4.29654263]
[1747428339884,123.9,169.22,169.21,5.9079]
[1747428340184,510.32,169.23,169.22,5.9076]
[1747428340387,5.51678162,169.24,169.15,9.73456636]
[1747428340983,5.51678162,169.24,169.14,61.98]
[1747428341484,5.51678162,169.24,169.21,5.9079]
[1747428341887,5.51678162,169.24,169.14,61.98]
[1747428342487,61.92,169.25,169.14,61.98]
[1747428342887,61.92,169.25,169.22,5.9074]
[1747428343287,61.92,169.25,169.14,61.98]
[1747428344383,61.92,169.25,169.24,5.9069]
[1747428346692,61.92,169.25,169.23,5.9071]
[1747428347391,61.92,169.25,169.22,5.9075]
[1747428347793,61.92,169.25,169.15,9.73456636]
[1747428347794,5.9069,169.24,169.2,5.908]
[1747428347992,61.92,169.25,169.14,61.98]
[1747428348393,5.9072,169.23,169.19,5.9084]
[1747428348581,62.0,169.22,169.14,61.98]
[1747428348782,61.9,169.21,169.13,5.8629]
[1747428349991,11.70886636,169.3,169.15,9.73456636]
[1747428350193,62.0,169.29,169.15,133.63456636]
[1747428350396,123.9,169.29,169.16,9.73456636]
[1747428350591,129.8054,169.29,169.16,9.73456636]
[1747428351599,123.9,169.29,169.22,5.9075]
[1747428351797,123.9,169.29,169.16,9.73456636]
[1747428352198,5.9062,169.26,169.22,5.9074]
[1747428352499,123.9,169.25,169.16,9.73456636]
[1747428353402,123.9,169.25,169.22,5.9073]
[1747428353601,123.9,169.25,169.14,62.0]
[1747428353895,129.8066,169.25,169.21,5.9076]
[1747428354103,129.8066,169.25,169.14,62.0]
[1747428355399,129.8066,169.25,169.21,5.9077]
[1747428357003,129.8066,169.25,169.22,5.9075]
[1747428357194,123.9,169.25,169.22,5.9075]
[1747428358800,123.8,169.24,169.14,62.0]
[1747428359096,61.9,169.24,169.14,62.0]
[1747428359802,61.9,169.24,169.23,5.9072]
[1747428360205,61.9,169.24,169.14,62.0]
[1747428360500,61.9,169.25,169.14,62.0]
[1747428360501,9.73456636,169.29,169.14,62.0]
[1747428360702,129.6857,169.28,169.14,62.0]
[1747428360903,123.78,169.28,169.22,5.9072]
[1747428361094,123.78,169.28,169.14,62.0]
[1747428361302,5.9061,169.27,169.14,62.0]
[1747428361703,5.9061,169.27,169.23,5.9069]
[1747428362200,5.9061,169.27,169.14,62.0]
[1747428362809,61.88,169.26,169.23,5.907]
[1747428363214,67.7862,169.26,169.22,5.9074]
[1747428363407,67.7862,169.26,169.14,62.0]
[1747428363606,61.88,169.26,169.14,62.0]
[1747428363914,67.7865,169.26,169.14,62.0]
[1747428364407,67.7865,169.26,169.23,5.9072]
[1747428365305,61.88,169.26,169.23,5.9072]
[1747428366014,67.7864,169.26,169.23,5.9072]
[1747428366509,67.7864,169.26,169.24,5.9068]
[1747428367412,61.88,169.26,169.24,5.9068]
[1747428367810,61.88,169.26,169.14,62.0]
[1747428367811,61.9,169.28,169.17,9.73456636]
[1747428368011,61.88,169.27,169.18,61.9]
[1747428368415,9.74900373,169.23,169.08,68.92830153]
[1747428368701,133.5315916,169.22,169.09,5.926]
[1747428368900,5.9086,169.19,169.09,5.926]
[1747428369104,61.86,169.18,169.09,5.926]
[1747428369402,5.9102,169.15,169.09,5.926]
[1747428369606,61.86,169.14,169.09,5.926]
[1747428370111,61.86,169.14,169.13,5.9107]
[1747428370410,61.86,169.14,169.09,5.926]
[1747428370613,61.86,169.14,169.12,5.9109]
[1747428371113,61.9,169.13,169.06,11.03376395]
[1747428371315,61.9,169.13,169.02,7.32494483]
[1747428371802,5.9113,169.12,169.07,5.9125]
[1747428372001,61.9,169.13,169.02,7.32494483]
[1747428372206,9.7596551,169.12,169.02,7.32494483]
[1747428372707,9.7596551,169.12,169.04,5.9138]
[1747428373111,9.7596551,169.12,169.02,7.32494483]
[1747428373112,61.9,169.13,169.02,7.32494483]
[1747428373310,5.9124,169.09,169.04,5.9138]
[1747428373510,61.86,169.08,169.04,5.9138]
[1747428373707,61.86,169.08,169.01,3.7465]
[1747428374013,61.86,169.08,169.01,4.92986193]
[1747428374202,61.86,169.08,169.05,5.9135]
[1747428374405,61.86,169.08,169.01,4.92986193]
[1747428374813,97.3,169.08,169.01,1.18336193]
[1747428375010,9.7596551,169.05,168.92,11.03376395]
[1747428375212,123.8,169.04,168.96,9.7596551]
[1747428375412,123.8,169.04,168.99,5.9156]
[1747428375718,123.8,169.04,168.97,3.7792]
[1747428376010,123.8,169.04,168.99,5.9156]
[1747428376317,61.94,169.06,168.98,1.18357202]
[1747428376513,61.94,169.06,169.02,5.9145]
[1747428376717,61.94,169.06,168.99,9.7596551]
[1747428377018,61.94,169.06,169.03,5.914]
[1747428377219,61.94,169.06,168.99,10.94315708]
[1747428377406,61.94,169.06,168.99,1.18350198]
[1747428377611,5.9137,169.05,169.0,5.915]
[1747428378019,61.94,169.06,168.99,1.18350198]
[1747428378414,61.94,169.06,168.97,13.5388551]
[1747428379421,67.8534,169.06,169.01,5.9148]
[1747428380221,61.94,169.06,169.02,5.9144]
[1747428380522,61.94,169.06,168.97,13.5388551]
[1747428380924,67.8533,169.06,169.01,5.9147]
[1747428381116,61.94,169.06,168.97,13.5388551]
[1747428381522,61.94,169.06,169.03,5.9141]
[1747428381719,61.94,169.06,168.97,13.5388551]
[1747428383524,61.94,169.06,168.97,3.7792]
[1747428383824,61.94,169.06,168.97,13.5388551]
[1747428384824,61.94,169.06,169.04,5.9135]
[1747428385223,61.94,169.06,169.0,71.6996551]
[1747428385525,61.94,169.06,169.05,5.9135]
[1747428385727,61.9,169.11,169.0,71.6996551]
[1747428386231,61.9,169.11,169.08,5.9124]
[1747428386622,61.9,169.11,169.0,71.6996551]
[1747428387020,61.9,169.11,169.08,5.9123]
[1747428387528,61.9,169.11,169.0,71.6996551]
[1747428387931,71.6596551,169.11,169.0,61.94]
[1747428388127,5.9127,169.08,169.03,5.9141]
[1747428388331,61.92,169.07,169.0,61.94]
[1747428388628,67.8329,169.07,169.02,5.9145]
[1747428388932,61.92,169.07,169.02,5.9145]
[1747428389724,61.92,169.07,168.97,514.7792]
[1747428389921,61.92,169.07,168.97,576.6792]
[1747428390535,61.92,169.07,169.02,5.9144]
[1747428390933,61.92,169.07,168.97,65.6792]
[1747428391121,61.92,169.07,169.03,5.914]
[1747428392034,67.8329,169.07,169.03,5.914]
[1747428392532,67.8329,169.07,169.04,5.9138]
[1747428394740,61.92,169.07,169.04,5.9138]
[1747428394931,61.92,169.07,169.05,5.9135]
[1747428395141,61.92,169.07,168.97,65.6792]
[1747428395537,61.92,169.07,169.04,5.9136]
[1747428395936,61.92,169.07,168.97,65.6792]
[1747428396239,61.92,169.07,169.04,5.9136]
[1747428397037,67.8328,169.07,169.04,5.9136]
[1747428397634,61.92,169.07,169.03,5.9141]
[1747428398038,5.9134,169.06,169.03,5.9141]
[1747428398239,61.92,169.07,168.97,65.6792]
[1747428398841,61.92,169.07,169.04,5.9137]
[1747428399233,61.92,169.07,169.05,5.9132]
[1747428399542,61.9,169.08,168.97,65.6792]
[1747428399741,61.92,169.07,168.97,65.6792]
[1747428400143,61.92,169.07,169.06,5.9132]
[1747428403051,61.9,169.08,169.07,5.9128]
[1747428403239,123.82,169.08,169.07,5.9128]
[1747428403440,61.92,169.08,169.07,5.9128]
[1747428407752,67.8115,169.11,169.08,5.9124]
[1747428407945,61.9,169.1,169.08,5.9124]
[1747428408952,67.8118,169.1,169.07,5.9126]
[1747428409148,61.9,169.1,169.07,5.9126]
[1747428409453,61.9,169.1,169.01,61.9]
[1747428410248,61.9,169.1,169.08,5.9123]
[1747428412355,61.9,169.1,169.09,5.9121]
[1747428412650,61.9,169.1,169.01,61.9]
[1747428412851,61.9,169.1,169.08,5.9123]
[1747428413155,61.9,169.1,169.01,61.9]
[1747428413654,61.9,169.1,169.01,63.9334]
[1747428414051,61.9,169.1,169.08,5.9122]
[1747428415356,61.9,169.1,169.07,5.9126]
[1747428415957,61.9,169.1,169.02,5.46947332]
[1747428416858,61.9,169.1,169.04,5.9136]
[1747428417066,61.9,169.1,169.02,5.46947332]
[1747428417656,5.9125,169.08,169.04,5.9137]
[1747428417865,61.9,169.1,169.04,5.9137]
[1747428418254,5.9127,169.08,169.04,5.9137]
[1747428418455,61.9,169.07,169.03,5.9141]
[1747428418753,61.9,169.06,169.03,5.9141]
[1747428419958,67.8132,169.06,169.03,5.9141]
[1747428420164,61.9,169.06,169.03,5.9141]
[1747428420764,61.9,169.06,169.0,5.46947332]
[1747428420958,61.9,169.06,168.98,67.36947332]
[1747428421364,61.9,169.06,169.03,5.914]
[1747428422165,67.8132,169.06,169.03,5.914]
[1747428422760,61.9,169.06,168.98,67.36947332]
[1747428423066,5.51678162,169.09,168.98,129.26947332]
[1747428423261,61.9,169.08,169.06,5.9129]
[1747428423458,61.9,169.08,168.98,129.26947332]
[1747428423763,5.51678162,169.09,169.07,5.9128]
[1747428423965,67.41678162,169.09,169.0,9.76173142]
[1747428424166,67.41678162,169.09,169.02,61.9]
[1747428424366,67.41678162,169.09,169.03,5.8638]
[1747428424668,67.41678162,169.09,169.08,5.9125]
[1747428426363,61.9,169.09,169.06,5.913]
[1747428426667,61.9,169.09,169.03,11.33327332]
[1747428426862,67.8122,169.09,169.03,11.33327332]
[1747428427068,61.9,169.09,169.03,11.33327332]
[1747428427462,61.9,169.09,169.08,5.9125]
[1747428430062,67.8109,169.13,169.03,11.33327332]
[1747428430268,61.88,169.12,169.03,21.09500474]
[1747428431168,61.9,169.13,169.11,5.9112]
[1747428431466,61.88,169.12,169.11,5.9112]
[1747428431965,61.88,169.12,169.1,5.9116]
[1747428432768,61.88,169.12,169.04,5.46947332]
[1747428433670,61.88,169.12,169.1,5.9115]
[1747428433870,61.88,169.12,169.04,5.46947332]
[1747428434473,61.88,169.12,169.11,5.9114]
[1747428434770,5.51678162,169.15,169.06,61.88]
[1747428434966,67.39678162,169.15,169.13,5.9104]
[1747428435277,67.39678162,169.15,169.06,61.88]
[1747428435979,67.39678162,169.15,169.04,5.46947332]
[1747428436169,61.88,169.15,169.06,5.46947332]
[1747428436673,5.9109,169.13,169.1,5.9117]
[1747428436873,61.88,169.13,169.1,5.9117]
[1747428438472,61.88,169.13,169.11,5.9113]
[1747428439165,61.88,169.13,169.1,5.9116]
[1747428439368,61.88,169.13,169.03,11.33327332]
[1747428440179,67.7909,169.13,169.09,5.9119]
[1747428440676,5.9111,169.12,169.09,5.9119]
[1747428440879,61.86,169.11,169.07,5.9126]
[1747428441277,5.9119,169.1,169.07,5.9126]
[1747428442182,67.7715,169.11,169.08,5.9123]
[1747428442478,67.7715,169.11,169.03,5.8638]
[1747428442779,61.86,169.11,169.09,5.9119]
[1747428443377,9.76173142,169.13,169.03,5.8638]
[1747428443581,61.86,169.1,169.03,5.8638]
[1747428444280,61.86,169.1,169.09,5.9121]
[1747428447378,61.88,169.12,169.11,5.9114]
[1747428447578,123.74,169.12,169.11,5.9114]
[1747428448382,61.88,169.12,169.11,5.9114]
[1747428448581,123.74,169.12,169.11,5.9114]
[1747428448979,5.51678162,169.14,169.12,5.911]
[1747428449182,61.86,169.13,169.03,5.8638]
[1747428449485,61.86,169.13,169.05,5.46947332]
[1747428449684,61.86,169.13,169.12,5.9111]
[1747428455088,61.86,169.13,169.06,61.84]
[1747428457094,5.9111,169.12,169.08,5.9124]
[1747428457289,5.9111,169.12,169.06,61.84]
[1747428457488,5.9111,169.12,169.05,5.46947332]
[1747428457687,5.9111,169.12,169.09,5.912]
[1747428458796,61.86,169.13,169.03,73.17327332]
[1747428459591,5.9119,169.1,169.07,5.9126]
[1747428459893,61.82,169.09,169.07,5.9126]
[1747428461396,61.82,169.09,169.08,5.9125]
[1747428461996,61.82,169.09,169.07,5.9127]
[1747428462396,61.82,169.09,169.03,5.8638]
[1747428462996,5.9126,169.08,169.05,5.9133]
[1747428463203,61.82,169.09,169.05,5.9133]
[1747428463501,5.9126,169.08,169.05,5.9133]
[1747428464602,5.9126,169.08,169.06,5.9131]
[1747428465402,5.9126,169.08,169.05,5.9134]
[1747428466404,61.82,169.09,169.01,5.46947332]
[1747428467398,5.9133,169.06,169.04,5.9139]
[1747428467598,61.82,169.05,169.04,5.9139]
[1747428468404,61.82,169.05,169.03,5.9141]
[1747428468902,61.82,169.05,169.01,5.46947332]
[1747428469104,61.82,169.05,169.04,5.9139]
[1747428469899,61.82,169.05,169.03,5.9141]
[1747428470101,61.82,169.05,169.0,5.46947332]
[1747428470893,61.82,169.05,169.02,5.9143]
[1747428471904,61.82,169.05,169.03,5.9141]
[1747428472805,61.82,169.05,169.02,5.9144]
[1747428473000,61.82,169.05,168.99,5.46947332]
[1747428474612,67.7336,169.05,168.99,5.46947332]
[1747428475214,61.82,169.05,168.99,5.46947332]
[1747428475608,61.82,169.05,169.01,5.9147]
[1747428475807,67.7337,169.05,169.01,5.9147]
[1747428476112,67.7337,169.05,168.98,3.9508]
[1747428476305,61.82,169.05,168.98,3.9508]
[1747428476702,61.82,169.05,169.02,5.9144]
[1747428477003,61.82,169.05,168.98,3.9508]
[1747428477213,67.7336,169.05,168.98,3.9508]
[1747428477711,5.9139,169.04,168.98,3.9508]
[1747428477913,61.82,169.05,169.01,5.9146]
[1747428478102,61.82,169.05,168.98,3.9508]